fUST/lending_fUST_20240804
["ID","MTS","AMOUNT","RATE_DAILY","PERIOD"]
[334093801,1722763839615,-500.0,0.00015483,2]
[334093802,1722763839624,-500.0,0.00015483,2]
[334093803,1722763839633,-525.89,0.00015483,2]
[334093804,1722763839643,-500.0,0.00015483,2]
[334093805,1722763839653,-287.13435611,0.00015483,2]
[334093806,1722763839662,-500.0,0.00015483,2]
[334093807,1722763839674,-500.0,0.00015483,2]
[334093808,1722763839685,-500.0,0.00015483,2]
[334093809,1722763839697,-500.0,0.00015483,2]
[334093810,1722763839707,-500.0,0.00015483,2]
[334093811,1722763839718,-500.0,0.00015483,2]
[334093812,1722763839730,-500.0,0.00015483,2]
[334093813,1722763839743,-500.0,0.00015483,2]
[334093814,1722763839754,-500.0,0.00015483,2]
[334093815,1722763839764,-500.0,0.00015483,2]
[334093816,1722763839774,-500.0,0.00015483,2]
[334093817,1722763839783,-552.71,0.00015483,2]
[334093818,1722763839792,-617.72240861,0.00015483,2]
[334093819,1722763839802,-500.0,0.00015483,2]
[334093820,1722763839812,-500.0,0.00015483,2]
[334093821,1722763839821,-500.0,0.00015483,2]
[334093822,1722763839830,-500.0,0.00015483,2]
[334093823,1722763839840,-1724.51,0.00015483,2]
[334093824,1722763839849,-500.0,0.00015483,2]
[334093825,1722763839858,-1176.16,0.00015483,2]
[334093826,1722763839867,-1176.16,0.00015483,2]
[334093827,1722763839876,-1263.77,0.00015483,2]
[334093828,1722763839885,-737.43,0.00015483,2]
[334093829,1722763839895,-500.0,0.00015483,2]
[334093830,1722763839905,-500.0,0.00015483,2]
[334093831,1722763839915,-500.0,0.00015483,2]
[334093832,1722763839924,-500.0,0.00015483,2]
[334093833,1722763839935,-652.91,0.00015483,2]
[334093834,1722763839948,-500.0,0.00015483,2]
[334093835,1722763839958,-500.0,0.00015484,2]
[334093836,1722763839969,-502.37850891,0.00015484,2]
[334093837,1722763839979,-500.0,0.00015484,2]
[334093838,1722763839992,-500.0,0.00015484,2]
[334093839,1722763840003,-500.0,0.00015484,2]
[334093840,1722763840014,-500.0,0.00015484,2]
[334093841,1722763840026,-500.0,0.00015484,2]
[334093842,1722763840036,-400.81230328,0.00015484,2]
[334093843,1722763840046,-505.97087219,0.00015484,2]
[334093844,1722763840058,-502.80422151,0.00015484,2]
[334093845,1722763840070,-500.0,0.00015484,2]
[334093846,1722763840080,-500.0,0.00015484,2]
[334093847,1722763840090,-515.45732506,0.00015484,2]
[334093848,1722763840101,-500.0,0.00015484,2]
[334093849,1722763840113,-500.0,0.00015484,2]
[334093850,1722763840124,-500.0,0.00015484,2]
[334093851,1722763840136,-500.0,0.00015484,2]
[334093852,1722763840146,-500.0,0.00015484,2]
[334093853,1722763840156,-500.0,0.00015484,2]
[334093854,1722763840168,-150.18772935,0.00015484,2]
[334093855,1722763840177,-502.21190516,0.00015484,2]
[334093856,1722763840186,-645.3645662,0.00015484,2]
[334093857,1722763840195,-513.79822906,0.00015484,2]
[334093858,1722763840205,-500.0,0.00015484,2]
[334093859,1722763840217,-501.24518072,0.00015484,2]
[334093860,1722763840229,-551.03495377,0.00015484,2]
[334093861,1722763840239,-500.0,0.00015484,2]
[334093862,1722763840250,-500.0,0.00015484,2]
[334093863,1722763840262,-500.0,0.00015484,2]
[334093864,1722763840273,-500.0,0.00015484,2]
[334093865,1722763840284,-500.0,0.00015484,2]
[334093866,1722763840295,-500.0,0.00015484,2]
[334093867,1722763840307,-500.0,0.00015484,2]
[334093868,1722763840317,-216.38185092,0.00015484,2]
[334093869,1722763840327,-506.17744813,0.00015484,2]
[334093870,1722763840339,-500.0,0.00015484,2]
[334093871,1722763840350,-500.0,0.00015484,2]
[334093872,1722763840360,-500.0,0.00015484,2]
[334093873,1722763840370,-500.0,0.00015484,2]
[334093874,1722763840381,-504.12362809,0.00015484,2]
[334093875,1722763840393,-500.0,0.00015484,2]
[334093876,1722763840402,-181.74233466,0.00015484,2]
[334093877,1722763840412,-500.0,0.00015484,2]
[334093878,1722763840424,-500.0,0.00015484,2]
[334093879,1722763840434,-500.0,0.00015484,2]
[334093880,1722763840444,-503.36908722,0.00015484,2]
[334093881,1722763840456,-500.0,0.00015484,2]
[334093882,1722763840466,-511.47924787,0.00015484,2]
[334093884,1722763840476,-500.0,0.00015484,2]
[334093885,1722763840488,-506.37355781,0.00015484,2]
[334093886,1722763840498,-571.46808504,0.00015484,2]
[334093887,1722763840508,-500.0,0.00015484,2]
[334093888,1722763840517,-500.0,0.00015484,2]
[334093889,1722763840527,-500.0,0.00015484,2]
[334093890,1722763840536,-500.0,0.00015484,2]
[334093891,1722763840545,-500.0,0.00015484,2]
[334093892,1722763840554,-500.0,0.00015484,2]
[334093893,1722763840564,-500.0,0.00015484,2]
[334093894,1722763840573,-422.31864677,0.00015484,2]
[334093895,1722763840583,-500.0,0.00015484,2]
[334093896,1722763840594,-500.0,0.00015484,2]
[334093897,1722763840603,-500.0,0.00015484,2]
[334093898,1722763840612,-500.0,0.00015484,2]
[334093899,1722763840621,-500.0,0.00015484,2]
[334093900,1722763840631,-500.0,0.00015484,2]
[334093902,1722763840640,-503.70495135,0.00015484,2]
[334093903,1722763840650,-500.0,0.00015484,2]
[334093905,1722763840659,-500.0,0.00015484,2]
[334093906,1722763840669,-500.0,0.00015484,2]
[334093908,1722763840678,-500.0,0.00015484,2]
[334093909,1722763840687,-500.0,0.00015484,2]
[334093910,1722763840697,-500.0,0.00015484,2]
[334093911,1722763840706,-500.0,0.00015484,2]
[334093912,1722763840715,-500.0,0.00015484,2]
[334093913,1722763840724,-500.0,0.00015484,2]
[334093914,1722763840733,-500.0,0.00015484,2]
[334093915,1722763840744,-233.97562821,0.00015484,2]
[334093916,1722763840753,-500.0,0.00015484,2]
[334093917,1722763840762,-500.0,0.00015484,2]
[334093918,1722763840771,-214.67892049,0.00015484,2]
[334093919,1722763840780,-500.0,0.00015484,2]
[334093920,1722763840789,-500.0,0.00015484,2]
[334093921,1722763840800,-1179.38,0.00015484,2]
[334093922,1722763840810,-500.0,0.00015484,2]
[334093923,1722763840820,-500.0,0.00015484,2]
[334093924,1722763840831,-500.0,0.00015484,2]
[334093925,1722763840840,-500.0,0.00015484,2]
[334093926,1722763840851,-500.0,0.00015484,2]
[334093927,1722763840862,-402.99362953,0.00015484,2]
[334093928,1722763840871,-500.0,0.00015484,2]
[334093929,1722763840882,-500.0,0.00015484,2]
[334093930,1722763840891,-500.0,0.00015484,2]
[334093931,1722763840901,-500.0,0.00015484,2]
[334093932,1722763840910,-500.0,0.00015484,2]
[334093933,1722763840919,-224.27595518,0.00015484,2]
[334093934,1722763840928,-500.0,0.00015484,2]
[334093935,1722763840938,-500.0,0.00015484,2]
[334093936,1722763840951,-500.0,0.00015484,2]
[334093937,1722763840963,-500.0,0.00015484,2]
[334093938,1722763840974,-500.0,0.00015484,2]
[334093939,1722763840984,-500.0,0.00015484,2]
[334093940,1722763840997,-500.0,0.00015484,2]
[334093941,1722763841007,-500.0,0.00015484,2]
[334093942,1722763841018,-505.94812083,0.00015484,2]
[334093943,1722763841030,-139.86468341,0.00015484,2]
[334093963,1722763847028,-500.0,0.00015482,2]
[334093964,1722763847040,-500.0,0.00015482,2]
[334093965,1722763847052,-500.0,0.00015482,2]
[334093966,1722763847062,-360.13531659,0.00015484,2]
[334093968,1722763847074,-500.0,0.00015484,2]
[334093969,1722763847084,-502.76569526,0.00015484,2]
[334093970,1722763847095,-500.0,0.00015484,2]
[334093971,1722763847105,-500.0,0.00015484,2]
[334093972,1722763847115,-500.0,0.00015484,2]
[334093973,1722763847127,-500.0,0.00015484,2]
[334093974,1722763847137,-500.0,0.00015484,2]
[334093975,1722763847148,-1176.16,0.00015484,2]
[334093976,1722763847159,-500.0,0.00015484,2]
[334093977,1722763847170,-560.11250154,0.00015484,2]
[334093978,1722763847183,-492.20098657,0.00015484,2]
[334093979,1722763847194,-502.89702242,0.00015484,2]
[334093980,1722763847205,-500.0,0.00015484,2]
[334093981,1722763847216,-500.0,0.00015484,2]
[334093982,1722763847227,-503.30959375,0.00015485,2]
[334093983,1722763847238,-500.0,0.00015485,2]
[334093984,1722763847250,-217.18052133,0.00015485,2]
[334093985,1722763847260,-500.0,0.00015485,2]
[334093986,1722763847269,-500.0,0.00015485,2]
[334093987,1722763847278,-501.61603736,0.00015485,2]
[334093988,1722763847287,-417.91042848,0.00015485,2]
[334093989,1722763847297,-590.78517009,0.00015485,2]
[334093990,1722763847317,-516.35547637,0.00015485,2]
[334093991,1722763847466,-342.52461219,0.00015485,2]
[334093992,1722763847476,-500.0,0.00015485,2]
[334093993,1722763847486,-500.0,0.00015485,2]
[334093994,1722763847496,-500.0,0.00015485,2]
[334093995,1722763847505,-501.2016491,0.00015485,2]
[334093996,1722763847514,-500.0,0.00015485,2]
[334093997,1722763847523,-500.0,0.00015485,2]
[334093998,1722763847533,-507.14903014,0.00015485,2]
[334093999,1722763847543,-500.0,0.00015485,2]
[334094000,1722763847552,-500.0,0.00015485,2]
[334094001,1722763847563,-500.0,0.00015485,2]
[334094002,1722763847572,-500.0,0.00015485,2]
[334094003,1722763847582,-500.0,0.00015485,2]
[334094004,1722763847592,-500.0,0.00015485,2]
[334094005,1722763847602,-551.13558251,0.00015485,2]
[334094006,1722763847611,-500.0,0.00015485,2]
[334094007,1722763847621,-313.36360577,0.00015485,2]
[334094008,1722763847630,-500.0,0.00015485,2]
[334094009,1722763847639,-330.12169935,0.00015485,2]
[334094010,1722763847648,-234.79330286,0.00015485,2]
[334094011,1722763847657,-545.52221596,0.00015485,2]
[334094012,1722763847666,-500.0,0.00015485,2]
[334094013,1722763847675,-503.50938992,0.00015485,2]
[334094014,1722763847684,-501.48550373,0.00015485,2]
[334094015,1722763847693,-501.41004709,0.00015485,2]
[334094016,1722763847702,-500.0,0.00015485,2]
[334094017,1722763847711,-500.0,0.00015485,2]
[334094018,1722763847721,-526.15827319,0.00015485,2]
[334094019,1722763847730,-502.9983679,0.00015485,2]
[334094020,1722763847740,-500.0,0.00015485,2]
[334094021,1722763847751,-521.452356,0.00015485,2]
[334094022,1722763847760,-358.4536143,0.00015485,2]
[334094023,1722763847770,-500.0,0.00015485,2]
[334094024,1722763847781,-500.0,0.00015485,2]
[334094025,1722763847790,-502.22700289,0.00015485,2]
[334094026,1722763847800,-516.26547321,0.00015485,2]
[334094027,1722763847812,-500.0,0.00015485,2]
[334094028,1722763847823,-500.48716057,0.00015485,2]
[334094029,1722763847834,-500.0,0.00015485,2]
[334094030,1722763847844,-500.0,0.00015485,2]
[334094031,1722763847855,-500.0,0.00015485,2]
[334094032,1722763847866,-212.20906453,0.0001553,2]
[334094033,1722763847878,-596.9546072,0.00015598,2]
[334094034,1722763847890,-17249.3896523,0.00015697,2]
[334094035,1722763847900,-13930.57771753,0.00015698,2]
[334094036,1722763847996,-3318.81193477,0.00015698,2]
[334094037,1722763848006,-1176.16,0.00015698,2]
[334094038,1722763848015,-500.0,0.00015698,2]
[334094039,1722763848024,-181.71838952,0.00015698,2]
[334094040,1722763848036,-207.14682609,0.00015698,2]
[334094041,1722763848046,-500.0,0.00015698,2]
[334094042,1722763848055,-500.0,0.00015698,2]
[334094043,1722763848064,-500.0,0.00015698,2]
[334094044,1722763848074,-500.0,0.00015698,2]
[334094045,1722763848086,-500.0,0.00015698,2]
[334094046,1722763848095,-500.0,0.00015698,2]
[334094047,1722763848104,-500.0,0.00015698,2]
[334094048,1722763848114,-151.0,0.00015699,2]
[334094049,1722763848123,-151.0,0.00015699,2]
[334094050,1722763848132,-151.0,0.00015699,2]
[334094051,1722763848142,-151.0,0.00015699,2]
[334094052,1722763848153,-151.0,0.00015699,2]
[334094053,1722763848162,-151.0,0.00015699,2]
[334094054,1722763848172,-285.588333,0.00015699,2]
[334094055,1722763848181,-151.0,0.00015699,2]
[334094056,1722763848191,-151.0,0.00015699,2]
[334094057,1722763848201,-154.080336,0.00015699,2]
[334094058,1722763848210,-151.0,0.00015699,2]
[334094059,1722763848220,-151.0,0.00015699,2]
[334094060,1722763848229,-151.0,0.00015699,2]
[334094061,1722763848238,-151.0,0.00015699,2]
[334094062,1722763848248,-1542.0731622,0.00015699,2]
[334094065,1722764851146,-234.52487,0.00013934,2]
[334094066,1722764851174,-157.521555,0.00014149,2]
[334094067,1722764851198,-500.779285,0.00014247,2]
[334094068,1722764851221,-661.84854202,0.00014262,2]
[334094069,1722764851261,-2338.15145798,0.00014262,2]
[334094070,1722764851287,-701.42166347,0.00015383,2]
[334094071,1722764851312,-300.0,0.0001548,2]
[334094072,1722764851337,-300.0,0.0001548,2]
[334094073,1722764851360,-290.73,0.00015481,2]
[334094074,1722764851383,-500.0,0.00015481,2]
[334094075,1722764851413,-500.0,0.00015481,2]
[334094076,1722764851438,-197.41638858,0.00015481,2]
[334094077,1722764853123,-302.58361142,0.00015481,2]
[334094078,1722764853146,-500.0,0.00015481,2]
[334094079,1722764853173,-500.0,0.00015481,2]
[334094080,1722764853195,-126.17116997,0.00015481,2]
[334094083,1722765010852,167.33,0.00010959,2]
[334094156,1722765037597,26.6185791,0.00014084,2]
[334094200,1722765038014,-130.9029759,0.00014084,2]
[334094202,1722765038024,-255.139993,0.00014204,2]
[334094204,1722765038035,-2925.7573341,0.00014454,2]
[334094206,1722765038044,-300.0,0.00014482,2]
[334094208,1722765038054,-300.0,0.00014482,2]
[334094210,1722765038063,-13092.31937811,0.00014483,2]
[334094441,1722765040229,-808.88059479,0.00014483,2]
[334094446,1722765040268,-701.6042922,0.00014483,2]
[334094448,1722765040278,-1096.41567862,0.00015472,2]
[334094451,1722765040293,-1833.50367553,0.00015472,2]
[334094453,1722765040308,-1205.51120499,0.00015472,2]
[334094455,1722765040321,-9317.95642939,0.00015472,2]
[334094652,1722765042958,-6055.85280747,0.00015472,2]
[334094654,1722765042968,-1331.11,0.0001548,2]
[334094656,1722765042979,-500.0,0.0001548,2]
[334094658,1722765042989,-500.0,0.0001548,2]
[334094660,1722765043001,-500.0,0.0001548,2]
[334094662,1722765043012,-373.82883003,0.00015481,2]
[334094664,1722765043023,-500.0,0.00015481,2]
[334094666,1722765043033,-572.83793934,0.00015481,2]
[334094668,1722765043046,-500.0,0.00015481,2]
[334094671,1722765043057,-500.0,0.00015481,2]
[334094673,1722765043068,-500.0,0.00015481,2]
[334094676,1722765043079,-500.0,0.00015481,2]
[334094679,1722765043090,-500.0,0.00015481,2]
[334094681,1722765043100,-500.0,0.00015481,2]
[334094683,1722765043111,-500.0,0.00015481,2]
[334094685,1722765043121,-355.97088972,0.00015481,2]
[334094687,1722765043130,-500.0,0.00015481,2]
[334094689,1722765043139,-500.0,0.00015481,2]
[334094691,1722765043149,-500.0,0.00015481,2]
[334094693,1722765043158,-517.53596677,0.00015481,2]
[334094695,1722765043168,-500.0,0.00015481,2]
[334094697,1722765043177,-500.0,0.00015481,2]
[334094699,1722765043187,-500.0,0.00015481,2]
[334094701,1722765043196,-500.0,0.00015481,2]
[334094703,1722765043206,-506.36208498,0.00015481,2]
[334094705,1722765043215,-500.0,0.00015481,2]
[334094707,1722765043225,-500.0,0.00015481,2]
[334094709,1722765043235,-500.0,0.00015481,2]
[334094712,1722765043244,-500.0,0.00015481,2]
[334094714,1722765043254,-500.0,0.00015481,2]
[334094716,1722765043264,-500.0,0.00015481,2]
[334094718,1722765043273,-500.0,0.00015481,2]
[334094720,1722765043283,-286.87097525,0.00015481,2]
[334094721,1722765043294,-500.0,0.00015481,2]
[334094724,1722765043306,-500.0,0.00015481,2]
[334094726,1722765043316,-500.0,0.00015481,2]
[334094728,1722765043326,-500.0,0.00015481,2]
[334094730,1722765043335,-500.0,0.00015481,2]
[334094732,1722765043346,-500.0,0.00015481,2]
[334094734,1722765043356,-625.7,0.00015481,2]
[334094736,1722765043366,-500.0,0.00015481,2]
[334094738,1722765043377,-500.0,0.00015481,2]
[334094740,1722765043387,-512.88636566,0.00015481,2]
[334094741,1722765043396,-253.4535885,0.00015481,2]
[334094743,1722765043405,-500.0,0.00015481,2]
[334094745,1722765043415,-500.0,0.00015481,2]
[334094747,1722765043424,-500.0,0.00015481,2]
[334094749,1722765043433,-500.0,0.00015481,2]
[334094751,1722765043442,-500.0,0.00015481,2]
[334094753,1722765043451,-881.9,0.00015481,2]
[334094755,1722765043461,-500.0,0.00015481,2]
[334094757,1722765043470,-500.0,0.00015481,2]
[334094759,1722765043479,-500.0,0.00015481,2]
[334094761,1722765043489,-500.0,0.00015481,2]
[334094763,1722765043498,-500.0,0.00015481,2]
[334094765,1722765043507,-500.0,0.00015481,2]
[334094767,1722765043518,-500.0,0.00015481,2]
[334094769,1722765043528,-500.0,0.00015481,2]
[334094771,1722765043539,-500.0,0.00015481,2]
[334094773,1722765043551,-503.53013191,0.00015481,2]
[334094775,1722765043561,-842.7,0.00015481,2]
[334094777,1722765043570,-500.0,0.00015481,2]
[334094779,1722765043580,-500.0,0.00015481,2]
[334094781,1722765043590,-500.0,0.00015481,2]
[334094783,1722765043600,-500.0,0.00015481,2]
[334094785,1722765043609,-500.0,0.00015481,2]
[334094787,1722765043618,-500.0,0.00015481,2]
[334094789,1722765043628,-500.0,0.00015481,2]
[334094791,1722765043638,-500.0,0.00015481,2]
[334094793,1722765043647,-252.32835872,0.00015481,2]
[334094795,1722765043657,-500.0,0.00015481,2]
[334094797,1722765043667,-304.8463827,0.00015481,2]
[334094800,1722765043678,-500.0,0.00015481,2]
[334094802,1722765043689,-500.0,0.00015481,2]
[334094804,1722765043700,-500.0,0.00015481,2]
[334094806,1722765043710,-500.0,0.00015481,2]
[334094808,1722765043720,-500.0,0.00015481,2]
[334094810,1722765043730,-500.0,0.00015481,2]
[334094812,1722765043740,-500.0,0.00015481,2]
[334094824,1722765043847,-500.0,0.00015481,2]
[334094826,1722765043858,-500.0,0.00015481,2]
[334094828,1722765043868,-500.0,0.00015481,2]
[334094830,1722765043877,-500.0,0.00015481,2]
[334094833,1722765043893,-500.0,0.00015481,2]
[334094835,1722765043903,-500.0,0.00015481,2]
[334094837,1722765043912,-553.14,0.00015481,2]
[334094839,1722765043922,-502.71016885,0.00015481,2]
[334094841,1722765043932,-500.0,0.00015481,2]
[334094844,1722765043945,-1748.67,0.00015481,2]
[334094846,1722765043955,-380.9779563,0.00015481,2]
[334094848,1722765043965,-500.0,0.00015481,2]
[334094850,1722765043975,-500.0,0.00015481,2]
[334094852,1722765043984,-500.0,0.00015481,2]
[334094854,1722765043994,-500.0,0.00015481,2]
[334094856,1722765044003,-1795.26,0.00015481,2]
[334094858,1722765044013,-744.84,0.00015481,2]
[334094859,1722765044022,-1211.12,0.00015481,2]
[334094862,1722765044032,-500.0,0.00015481,2]
[334094863,1722765044043,-500.0,0.00015481,2]
[334094866,1722765044053,-500.0,0.00015481,2]
[334094868,1722765044062,-500.0,0.00015481,2]
[334094870,1722765044072,-500.0,0.00015482,2]
[334094872,1722765044083,-523.4497655,0.00015482,2]
[334094874,1722765044092,-500.0,0.00015482,2]
[334094876,1722765044103,-500.0,0.00015482,2]
[334094878,1722765044115,-407.85056107,0.00015482,2]
[334094880,1722765044126,-500.0,0.00015482,2]
[334094882,1722765044135,-602.84,0.00015482,2]
[334094884,1722765044145,-500.0,0.00015482,2]
[334094886,1722765044154,-500.0,0.00015482,2]
[334094888,1722765044164,-500.0,0.00015482,2]
[334094890,1722765044174,-500.0,0.00015482,2]
[334094892,1722765044183,-500.0,0.00015482,2]
[334094894,1722765044192,-500.0,0.00015482,2]
[334094896,1722765044202,-500.0,0.00015482,2]
[334094898,1722765044212,-500.0,0.00015482,2]
[334094900,1722765044223,-500.0,0.00015482,2]
[334094903,1722765044234,-500.0,0.00015482,2]
[334094905,1722765044245,-500.0,0.00015482,2]
[334094907,1722765044257,-500.0,0.00015482,2]
[334094909,1722765044268,-500.0,0.00015482,2]
[334094911,1722765044279,-247.97682975,0.00015482,2]
[334094913,1722765044291,-562.08,0.00015482,2]
[334094915,1722765044307,-500.0,0.00015482,2]
[334094918,1722765044318,-500.0,0.00015482,2]
[334094920,1722765044329,-500.0,0.00015482,2]
[334094922,1722765044341,-500.0,0.00015482,2]
[334094924,1722765044353,-500.0,0.00015482,2]
[334094926,1722765044363,-500.0,0.00015482,2]
[334094928,1722765044375,-500.0,0.00015482,2]
[334094930,1722765044385,-500.0,0.00015482,2]
[334094932,1722765044395,-500.0,0.00015482,2]
[334094934,1722765044404,-500.0,0.00015482,2]
[334094936,1722765044414,-500.0,0.00015482,2]
[334094939,1722765044426,-500.0,0.00015482,2]
[334094941,1722765044435,-500.0,0.00015482,2]
[334094943,1722765044445,-600.19715287,0.00015482,2]
[334094956,1722765044455,-500.0,0.00015482,2]
[334094958,1722765044576,-424.05041826,0.00015482,2]
[334094960,1722765044587,-500.0,0.00015482,2]
[334094962,1722765044599,-500.0,0.00015482,2]
[334094964,1722765044609,-500.0,0.00015482,2]
[334094967,1722765044621,-553.24679722,0.00015482,2]
[334094969,1722765044631,-500.0,0.00015482,2]
[334094971,1722765044640,-500.0,0.00015482,2]
[334094973,1722765044650,-500.0,0.00015482,2]
[334094975,1722765044660,-500.0,0.00015482,2]
[334094977,1722765044670,-500.0,0.00015482,2]
[334094979,1722765044679,-364.15272888,0.00015482,2]
[334094981,1722765044689,-500.0,0.00015482,2]
[334094983,1722765044699,-500.0,0.00015482,2]
[334094985,1722765044708,-500.0,0.00015482,2]
[334094987,1722765044718,-500.0,0.00015482,2]
[334094989,1722765044728,-500.0,0.00015482,2]
[334094991,1722765044740,-503.74727842,0.00015482,2]
[334094993,1722765044752,-500.0,0.00015482,2]
[334094996,1722765044762,-500.0,0.00015482,2]
[334094998,1722765044772,-500.0,0.00015482,2]
[334095000,1722765044782,-500.0,0.00015482,2]
[334095002,1722765044794,-500.0,0.00015482,2]
[334095004,1722765044803,-534.8209211,0.00015482,2]
[334095006,1722765044814,-500.0,0.00015482,2]
[334095008,1722765044823,-500.0,0.00015482,2]
[334095010,1722765044832,-526.3207772,0.00015482,2]
[334095011,1722765044842,-500.0,0.00015482,2]
[334095013,1722765044851,-500.0,0.00015482,2]
[334095016,1722765044860,-1795.26,0.00015482,2]
[334095018,1722765044872,-500.0,0.00015482,2]
[334095020,1722765044881,-500.0,0.00015482,2]
[334095022,1722765044891,-701.42166344,0.00015519,2]
[334095024,1722765044901,-701.42166344,0.00015656,2]
[334095026,1722765044910,-19509.239796,0.00015698,2]
[334095028,1722765044919,-1795.26,0.00015698,2]
[334095030,1722765044929,-39018.479592,0.00015699,2]
[334095032,1722765044939,-150.112233,0.000157,2]
[334095034,1722765044951,-500.0,0.00015707,2]
[334095036,1722765044962,-445.00277826,0.00015707,2]
[334095038,1722765044971,-500.0,0.00015707,2]
[334095040,1722765044981,-500.0,0.00015707,2]
[334095042,1722765044991,-500.0,0.00015707,2]
[334095044,1722765045000,-500.0,0.00015707,2]
[334095046,1722765045010,-1795.26,0.00015707,2]
[334095048,1722765045020,-1795.26,0.00015707,2]
[334095050,1722765045029,-2519.21795522,0.00015708,5]
[334095052,1722765045040,-7774.59967491,0.00015708,2]
[334095054,1722765045050,-1162.72829906,0.00015708,2]
[334095056,1722765045059,-33.74412005,0.00015708,2]
[334095059,1722765045073,-9076.02412429,0.00015708,2]
[334095158,1722765045993,-531.89005535,0.00015708,2]
[334095160,1722765046004,-2162.43676373,0.00015708,2]
[334095162,1722765046015,-2138.98947464,0.00015708,2]
[334095164,1722765046027,-2278.01854997,0.00015708,3]
[334095166,1722765046038,-1610.56614984,0.00015708,2]
[334095168,1722765046055,-1500.0,0.00015708,2]
[334095170,1722765046064,-2124.35920477,0.00015708,2]
[334095172,1722765046073,-1643.04146398,0.00015708,7]
[334095174,1722765046082,-7001.07154863,0.00015708,2]
[334095176,1722765046091,-274.75479126,0.00015708,2]
[334095544,1722765949234,-348.2575741,0.00014051,2]
[334095545,1722765949255,-255.1399947,0.00014109,2]
[334095546,1722765949277,-475.74032,0.00014247,2]
[334095547,1722765949299,-250.91632158,0.00014479,2]
[334095549,1722766034095,-620.96,0.00010959,2]
[334095550,1722766034118,-838.17086414,0.00014014,2]
[334095551,1722766047092,-681.94464386,0.00014014,2]
[334095552,1722766047116,-169.85172,0.00014117,2]
[334095553,1722766047141,-169.85172,0.0001424,2]
[334095554,1722766047164,-169.85172,0.00014362,2]
[334095555,1722766047188,-394.91628467,0.00014479,2]
[334095561,1722766151122,-275.7551173,0.00014054,2]
[334095566,1722766189173,214.2448827,0.00014054,2]
[334095791,1722766238009,-862.19880472,0.00014054,2]
[334095793,1722766238020,-508.74404664,0.00014054,2]
[334095795,1722766238030,-206.49769,0.00014247,2]
[334095797,1722766238039,-169.85172,0.00014485,2]
[334095799,1722766238049,-169.85172,0.00014608,2]
[334095801,1722766238058,-170.93778722,0.0001469,2]
[334095803,1722766238068,-169.85172,0.0001473,2]
[334095805,1722766238078,-200.0,0.00014795,2]
[334095807,1722766238087,-169.85172,0.00014853,2]
[334095809,1722766238096,-492.40339763,0.00015,2]
[334095811,1722766238109,-1160.65,0.00015471,2]
[334095813,1722766238118,-500.0,0.00015471,2]
[334095815,1722766238128,-500.0,0.00015479,2]
[334095817,1722766238137,-500.0,0.00015479,2]
[334095820,1722766238148,-24.32724407,0.00015479,2]
[334095899,1722766238903,-475.67275593,0.00015479,2]
[334095901,1722766238914,-500.0,0.00015479,2]
[334095903,1722766238924,-500.0,0.00015479,2]
[334095906,1722766238935,-500.0,0.00015479,2]
[334095908,1722766238946,-500.0,0.00015479,2]
[334095910,1722766238959,-500.0,0.00015479,2]